fUSD/lending_fUSD_20260218
["ID","MTS","AMOUNT","RATE_DAILY","PERIOD"]
[405879985,1771383040074,-500.0,8.556e-05,2]
[405879986,1771383040084,-500.0,8.556e-05,2]
[405879987,1771383040093,-500.0,8.556e-05,2]
[405879988,1771383040103,-500.0,8.556e-05,2]
[405879989,1771383040112,-590.0,8.556e-05,2]
[405879990,1771383040122,-776.62150607,8.556e-05,3]
[405879991,1771383040131,-926.43,8.556e-05,2]
[405879992,1771383040140,-500.0,8.556e-05,2]
[405879993,1771383040150,-430.05506624,8.556e-05,2]
[405879994,1771383040160,-500.0,8.556e-05,2]
[405879995,1771383040170,-310.6258914,8.556e-05,2]
[405879997,1771383040180,-500.0,8.556e-05,2]
[405879999,1771383040189,-486.87252444,8.556e-05,2]
[405880000,1771383040198,-500.0,8.556e-05,2]
[405880001,1771383040208,-500.0,8.556e-05,2]
[405880002,1771383040217,-500.0,8.556e-05,2]
[405880003,1771383040226,-500.0,8.556e-05,2]
[405880004,1771383040235,-501.50373344,8.556e-05,2]
[405880005,1771383040244,-500.0,8.556e-05,2]
[405880006,1771383040253,-345.9894534,8.556e-05,2]
[405880007,1771383040262,-398.80199223,8.556e-05,2]
[405880008,1771383040271,-500.0,8.556e-05,2]
[405880009,1771383040281,-470.92445476,8.556e-05,2]
[405880010,1771383040290,-234.71542524,8.556e-05,2]
[405880011,1771383040299,-500.0,8.556e-05,2]
[405880012,1771383040308,-500.0,8.556e-05,2]
[405880013,1771383040317,-500.0,8.556e-05,2]
[405880014,1771383040327,-500.0,8.556e-05,2]
[405880015,1771383040336,-500.0,8.556e-05,2]
[405880016,1771383040345,-500.0,8.556e-05,2]
[405880017,1771383040354,-500.0,8.556e-05,2]
[405880018,1771383040363,-350.00000001,8.556e-05,2]
[405880019,1771383040372,-500.0,8.556e-05,2]
[405880020,1771383040382,-500.0,8.556e-05,2]
[405880021,1771383040391,-500.0,8.556e-05,2]
[405880022,1771383040400,-500.0,8.556e-05,2]
[405880023,1771383040409,-500.0,8.556e-05,2]
[405880024,1771383040418,-500.0,8.556e-05,2]
[405880025,1771383040427,-500.0,8.556e-05,2]
[405880026,1771383040436,-500.0,8.556e-05,2]
[405880027,1771383040446,-500.0,8.556e-05,2]
[405880028,1771383040455,-500.0,8.556e-05,2]
[405880029,1771383040464,-500.0,8.556e-05,2]
[405880030,1771383040473,-500.0,8.556e-05,2]
[405880031,1771383040483,-500.0,8.556e-05,2]
[405880032,1771383040492,-500.0,8.556e-05,2]
[405880033,1771383040502,-500.0,8.556e-05,2]
[405880034,1771383040511,-500.0,8.556e-05,2]
[405880035,1771383040520,-500.0,8.556e-05,2]
[405880036,1771383040530,-500.0,8.556e-05,2]
[405880037,1771383040538,-502.4408269,8.556e-05,2]
[405880038,1771383040548,-500.0,8.556e-05,2]
[405880039,1771383040557,-500.0,8.556e-05,2]
[405880040,1771383040567,-500.0,8.556e-05,2]
[405880041,1771383040575,-500.0,8.556e-05,2]
[405880042,1771383040585,-500.0,8.556e-05,2]
[405880043,1771383040594,-500.0,8.556e-05,2]
[405880044,1771383040603,-500.0,8.556e-05,2]
[405880045,1771383040612,-500.0,8.556e-05,2]
[405880046,1771383040621,-500.0,8.556e-05,2]
[405880047,1771383040630,-500.0,8.556e-05,2]
[405880048,1771383040639,-500.0,8.556e-05,2]
[405880049,1771383040648,-500.0,8.556e-05,2]
[405880050,1771383040657,-369.86086096,8.556e-05,2]
[405880051,1771383040666,-500.0,8.556e-05,2]
[405880052,1771383040675,-500.0,8.556e-05,2]
[405880053,1771383040685,-500.0,8.556e-05,2]
[405880054,1771383040694,-8700.0,8.6e-05,3]
[405880055,1771383040704,-500.0,8.603e-05,2]
[405880056,1771383040713,-500.0,8.603e-05,2]
[405880057,1771383040723,-500.0,8.603e-05,2]
[405880058,1771383040735,-163.51122534,8.603e-05,2]
[405880059,1771383040744,-500.0,8.603e-05,2]
[405880060,1771383040753,-4245.0,8.603e-05,2]
[405880061,1771383040763,-464.76021291,8.611e-05,2]
[405880062,1771383040772,-500.0,8.611e-05,2]
[405880063,1771383040782,-500.0,8.611e-05,2]
[405880064,1771383040791,-500.0,8.611e-05,2]
[405880065,1771383040801,-477.2533736,8.611e-05,2]
[405880066,1771383040812,-500.0,8.611e-05,2]
[405880067,1771383040821,-590.0,8.611e-05,2]
[405880068,1771383040831,-10606.69,8.631e-05,2]
[405880069,1771383040840,-378.0,8.646e-05,2]
[405880070,1771383040850,-23443.28196251,8.657e-05,2]
[405880071,1771383040864,-306.36803749,8.657e-05,2]
[405880072,1771383040874,-95.24817751,8.657e-05,2]
[405880073,1771383040885,-404.75182249,8.657e-05,2]
[405880074,1771383040895,-500.0,8.657e-05,2]
[405880075,1771383040904,-500.0,8.657e-05,2]
[405880076,1771383040914,-500.0,8.657e-05,2]
[405880077,1771383040924,-299.66417338,8.657e-05,2]
[405880078,1771383041072,-3945.33582662,8.657e-05,2]
[405880079,1771383041082,-500.0,8.666e-05,2]
[405880080,1771383041091,-500.0,8.666e-05,2]
[405880081,1771383041101,-500.0,8.666e-05,2]
[405880082,1771383041111,-500.0,8.666e-05,2]
[405880083,1771383041120,-590.0,8.666e-05,2]
[405880084,1771383041129,-378.0,8.672e-05,2]
[405880085,1771383041139,-393.89,8.676e-05,2]
[405880086,1771383041149,-1000.0,8.693e-05,2]
[405880087,1771383041160,-17500.0,8.7e-05,3]
[405880088,1771383041175,-166.66,8.704e-05,2]
[405880089,1771383041185,-378.0,8.705e-05,2]
[405880090,1771383041195,-500.0,8.712e-05,2]
[405880091,1771383041211,-500.0,8.712e-05,2]
[405880092,1771383041221,-500.0,8.712e-05,2]
[405880093,1771383041230,-500.0,8.712e-05,2]
[405880094,1771383041239,-4245.0,8.712e-05,2]
[405880095,1771383041248,-500.0,8.72e-05,2]
[405880096,1771383041257,-500.0,8.72e-05,2]
[405880097,1771383041266,-500.0,8.72e-05,2]
[405880098,1771383041275,-500.0,8.72e-05,2]
[405880099,1771383041284,-590.0,8.72e-05,2]
[405880100,1771383041294,-350.0,8.767e-05,2]
[405880101,1771383041303,-500.0,8.767e-05,2]
[405880102,1771383041312,-500.0,8.767e-05,2]
[405880103,1771383041322,-500.0,8.767e-05,2]
[405880104,1771383041332,-4245.0,8.767e-05,2]
[405880105,1771383041343,-500.0,8.775e-05,2]
[405880106,1771383041353,-500.0,8.775e-05,2]
[405880107,1771383041374,-500.0,8.775e-05,2]
[405880108,1771383041385,-500.0,8.775e-05,2]
[405880109,1771383041396,-590.0,8.775e-05,2]
[405880110,1771383041405,-26300.0,8.8e-05,3]
[405880111,1771383041416,-500.0,8.822e-05,2]
[405880112,1771383041425,-500.0,8.822e-05,2]
[405880113,1771383041434,-500.0,8.822e-05,2]
[405880114,1771383041444,-4245.0,8.822e-05,2]
[405880115,1771383041453,-766.11,8.829e-05,2]
[405880116,1771383041462,-500.0,8.83e-05,2]
[405880117,1771383041472,-500.0,8.83e-05,2]
[405880118,1771383041481,-500.0,8.83e-05,2]
[405880119,1771383041490,-500.0,8.83e-05,2]
[405880120,1771383041499,-500.0,8.83e-05,2]
[405880121,1771383041509,-590.0,8.83e-05,2]
[405880122,1771383041518,-926.43,8.83e-05,2]
[405880123,1771383041527,-378.0,8.834e-05,2]
[405880124,1771383041536,-423.0,8.84e-05,2]
[405880125,1771383041546,-282.0,8.841e-05,2]
[405880126,1771383041555,-457.0,8.857e-05,2]
[405880127,1771383041564,-387.0,8.875e-05,2]
[405880128,1771383041574,-500.0,8.877e-05,2]
[405880129,1771383041583,-500.0,8.877e-05,2]
[405880130,1771383041593,-500.0,8.877e-05,2]
[405880131,1771383041602,-4245.0,8.877e-05,2]
[405880132,1771383041611,-500.0,8.885e-05,2]
[405880133,1771383041621,-363.64051587,8.885e-05,2]
[405880134,1771383041630,-500.0,8.885e-05,2]
[405880135,1771383041639,-500.0,8.885e-05,2]
[405880136,1771383041649,-590.0,8.885e-05,2]
[405880137,1771383041658,-289.0,8.893e-05,2]
[405880138,1771383041668,-35100.0,8.9e-05,3]
[405880139,1771383041677,-229.75701162,8.931e-05,2]
[405880140,1771383041687,-500.0,8.931e-05,2]
[405880141,1771383041696,-500.0,8.931e-05,2]
[405880142,1771383041705,-500.0,8.931e-05,2]
[405880143,1771383041714,-4245.0,8.931e-05,2]
[405880144,1771383041723,-500.0,8.94e-05,2]
[405880145,1771383041734,-153.83069902,8.94e-05,2]
[405880146,1771383041743,-500.0,8.94e-05,2]
[405880147,1771383041752,-590.0,8.94e-05,2]
[405880148,1771383041763,-166.66,8.957e-05,2]
[405880149,1771383041774,-500.0,8.986e-05,2]
[405880150,1771383041783,-500.0,8.986e-05,2]
[405880151,1771383041792,-500.0,8.986e-05,2]
[405880152,1771383041801,-4245.0,8.986e-05,2]
[405880153,1771383041811,-219.0,8.993e-05,2]
[405880154,1771383041820,-500.0,8.994e-05,2]
[405880155,1771383041829,-504.44023798,8.994e-05,2]
[405880156,1771383041839,-590.0,8.994e-05,2]
[405880157,1771383041848,-43800.0,9e-05,3]
[405880158,1771383041859,-1680.0,9.039e-05,2]
[405880159,1771383041869,-255.0,9.04e-05,2]
[405880160,1771383041879,-500.0,9.041e-05,2]
[405880161,1771383041890,-500.0,9.041e-05,2]
[405880162,1771383041902,-500.0,9.041e-05,2]
[405880163,1771383041917,-4245.0,9.041e-05,2]
[405880164,1771383041928,-618.72711734,9.049e-05,2]
[405880165,1771383041939,-590.0,9.049e-05,2]
[405880166,1771383041950,-378.0,9.052e-05,2]
[405880167,1771383041960,-500.0,9.096e-05,2]
[405880168,1771383041970,-642.64767848,9.096e-05,2]
[405880169,1771383041980,-500.0,9.096e-05,2]
[405880170,1771383041989,-4245.0,9.096e-05,2]
[405880171,1771383041999,-500.0,9.103e-05,2]
[405880172,1771383042010,-500.0,9.103e-05,2]
[405880173,1771383042019,-500.0,9.104e-05,2]
[405880174,1771383042029,-590.0,9.104e-05,2]
[405880175,1771383042039,-926.43,9.104e-05,2]
[405880176,1771383042050,-378.0,9.129e-05,2]
[405880177,1771383042060,-393.89,9.132e-05,2]
[405880178,1771383042071,-527.26662663,9.151e-05,2]
[405880179,1771383042082,-500.0,9.151e-05,2]
[405880180,1771383042093,-4245.0,9.151e-05,2]
[405880181,1771383042102,-500.0,9.158e-05,2]
[405880182,1771383042112,-500.0,9.158e-05,2]
[405880183,1771383042122,-590.0,9.159e-05,2]
[405880184,1771383042132,-488.75,9.2e-05,2]
[405880185,1771383042141,-322.06627724,9.205e-05,2]
[405880186,1771383042151,-4245.0,9.205e-05,2]
[405880187,1771383042161,-500.0,9.213e-05,2]
[405880188,1771383042171,-500.0,9.213e-05,2]
[405880189,1771383042180,-590.0,9.214e-05,2]
[405880190,1771383042190,-378.0,9.224e-05,2]
[405880191,1771383042200,-250.0,9.23e-05,2]
[405880192,1771383042210,-1600.0,9.251e-05,2]
[405880193,1771383042219,-4245.0,9.26e-05,2]
[405880194,1771383042228,-500.0,9.267e-05,2]
[405880195,1771383042238,-500.0,9.267e-05,2]
[405880196,1771383042248,-590.0,9.268e-05,2]
[405880197,1771383042258,-378.0,9.27e-05,2]
[405880198,1771383042267,-340.39796731,9.278e-05,2]
[405880199,1771383042278,-260.8349,9.278e-05,2]
[405880200,1771383042288,-32853.2111,9.278e-05,2]
[405880201,1771383042298,-951.9112,9.278e-05,2]
[405880202,1771383042307,-231.36,9.3e-05,2]
[405880203,1771383042317,-4245.0,9.315e-05,2]
[405880204,1771383042328,-331.0837759,9.322e-05,2]
[405880205,1771383042338,-500.0,9.322e-05,2]
[405880206,1771383042348,-590.0,9.323e-05,2]
[405880207,1771383042358,-2643.22,9.361e-05,2]
[405880208,1771383042368,-4245.0,9.37e-05,2]
[405880209,1771383042378,-500.0,9.377e-05,2]
[405880210,1771383042388,-500.0,9.378e-05,2]
[405880211,1771383042399,-590.0,9.378e-05,2]
[405880212,1771383042410,-926.43,9.378e-05,2]
[405880213,1771383042420,-500.0,9.432e-05,2]
[405880214,1771383042430,-590.0,9.433e-05,2]
[405880215,1771383042439,-378.0,9.439e-05,2]
[405880216,1771383042450,-378.0,9.458e-05,2]
[405880217,1771383042460,-500.0,9.478e-05,2]
[405880218,1771383042474,-500.0,9.478e-05,2]
[405880219,1771383042483,-571.87903258,9.478e-05,2]
[405880220,1771383042493,-500.0,9.478e-05,2]
[405880221,1771383042503,-500.0,9.478e-05,2]
[405880222,1771383042513,-500.0,9.478e-05,2]
[405880223,1771383042523,-500.0,9.478e-05,2]
[405880224,1771383042533,-500.0,9.478e-05,2]
[405880225,1771383042542,-500.0,9.478e-05,2]
[405880226,1771383042551,-500.0,9.478e-05,2]
[405880227,1771383042561,-509.41409571,9.478e-05,2]
[405880228,1771383042570,-500.0,9.478e-05,2]
[405880229,1771383042580,-500.0,9.478e-05,2]
[405880230,1771383042590,-500.79797067,9.478e-05,2]
[405880231,1771383042903,-500.0,9.478e-05,2]
[405880232,1771383042914,-544.61216662,9.478e-05,2]
[405880233,1771383042930,-500.0,9.478e-05,2]
[405880234,1771383042940,-500.0,9.478e-05,2]
[405880235,1771383042949,-545.94594679,9.478e-05,2]
[405880236,1771383042958,-500.0,9.478e-05,2]
[405880238,1771383042968,-163.61561454,9.478e-05,2]
[405880239,1771383042978,-500.0,9.478e-05,2]
[405880240,1771383042987,-500.0,9.478e-05,2]
[405880241,1771383042996,-500.0,9.478e-05,2]
[405880242,1771383043006,-500.0,9.478e-05,2]
[405880243,1771383043015,-160.21556757,9.478e-05,2]
[405880244,1771383043024,-502.64931561,9.478e-05,2]
[405880245,1771383043034,-500.0,9.478e-05,2]
[405880246,1771383043043,-500.0,9.478e-05,2]
[405880247,1771383043052,-500.46900966,9.478e-05,2]
[405880248,1771383043061,-306.32454784,9.478e-05,2]
[405880249,1771383043070,-500.0,9.478e-05,2]
[405880250,1771383043080,-500.0,9.478e-05,2]
[405880251,1771383043089,-378.0,9.479e-05,2]
[405880252,1771383043098,-35869.0,9.48e-05,2]
[405880253,1771383043107,-500.0,9.487e-05,2]
[405880254,1771383043117,-590.0,9.487e-05,2]
[405880255,1771383043126,-378.0,9.498e-05,2]
[405880256,1771383043135,-639.80033768,9.541e-05,2]
[405880257,1771383043145,-590.40852856,9.542e-05,2]
[405880258,1771383043154,-378.0,9.557e-05,2]
[405880259,1771383043164,-393.89,9.589e-05,2]
[405880260,1771383043174,-500.0,9.652e-05,2]
[405880261,1771383043183,-926.43,9.652e-05,2]
[405880262,1771383043192,-503.41577776,9.721e-05,2]
[405880263,1771383043202,-151.0,9.726e-05,2]
[405880264,1771383043211,-414864.6536327,9.729e-05,2]
[405880265,1771383043222,-230686.1665363,9.729e-05,2]
[405880266,1771383043232,-210626.499881,9.729e-05,2]
[405880267,1771383043242,-11065.1578968,9.729e-05,2]
[405880268,1771383043251,-1000.0,9.73e-05,2]
[405880269,1771383043263,-1508.0,9.731e-05,2]
[405880270,1771383043272,-152.0,9.731e-05,2]
[405880271,1771383043282,-153.0,9.731e-05,2]
[405880272,1771383043292,-1508.0,9.731e-05,2]
[405880273,1771383043305,-152.0,9.731e-05,2]
[405880274,1771383043316,-153.0,9.731e-05,2]
[405880275,1771383043326,-152.0,9.731e-05,2]
[405880276,1771383043335,-1508.0,9.731e-05,2]
[405880277,1771383043345,-152.0,9.731e-05,2]
[405880278,1771383043355,-153.0,9.731e-05,2]
[405880279,1771383043365,-152.0,9.731e-05,2]
[405880280,1771383043374,-1508.0,9.731e-05,2]
[405880281,1771383043384,-153.0,9.731e-05,2]
[405880282,1771383043394,-152.0,9.731e-05,2]
[405880283,1771383043404,-1508.0,9.731e-05,2]
[405880284,1771383043413,-153.0,9.731e-05,2]
[405880285,1771383043423,-152.0,9.731e-05,2]
[405880286,1771383043432,-1508.0,9.731e-05,2]
[405880287,1771383043441,-153.0,9.731e-05,2]
[405880288,1771383043450,-152.0,9.731e-05,2]
[405880289,1771383043459,-1508.0,9.731e-05,2]
[405880290,1771383043469,-153.0,9.731e-05,2]
[405880291,1771383043478,-1508.0,9.731e-05,2]
[405880292,1771383043487,-152.0,9.731e-05,2]
[405880293,1771383043497,-153.0,9.731e-05,2]
[405880294,1771383043506,-152.0,9.731e-05,2]
[405880295,1771383043515,-1508.0,9.731e-05,2]
[405880296,1771383043525,-153.0,9.731e-05,2]
[405880297,1771383043534,-152.0,9.731e-05,2]
[405880298,1771383043544,-153.0,9.731e-05,2]
[405880299,1771383043553,-153.0,9.731e-05,2]
[405880300,1771383043564,-153.0,9.731e-05,2]
[405880301,1771383043574,-153.0,9.731e-05,2]
[405880302,1771383043584,-1508.0,9.731e-05,2]
[405880303,1771383043596,-1508.0,9.731e-05,2]
[405880304,1771383043607,-1508.0,9.731e-05,2]
[405880305,1771383043618,-153.0,9.731e-05,2]
[405880306,1771383043628,-153.0,9.731e-05,2]
[405880307,1771383043638,-153.0,9.731e-05,2]
[405880308,1771383043648,-153.0,9.731e-05,2]
[405880309,1771383043660,-153.0,9.731e-05,2]
[405880310,1771383043671,-153.0,9.731e-05,2]
[405880311,1771383043684,-152.0,9.731e-05,2]
[405880312,1771383043695,-378.0,9.752e-05,2]
[405880313,1771383043705,-1000.0,9.779e-05,2]
[405880314,1771383043714,-151.0,9.9e-05,2]
[405880315,1771383043724,-168.0,9.926e-05,2]
[405880316,1771383043737,-500.0,9.926e-05,2]
[405880317,1771383043747,-926.43,9.926e-05,2]
[405880318,1771383043756,-2351.0,9.943e-05,2]
[405880319,1771383043766,-433.0,9.944e-05,2]
[405880320,1771383043777,-378.0,9.998e-05,2]
[405880321,1771383043786,-1966.51018405,0.0001,2]
[405880322,1771383043795,-22862.19939681,0.0001,2]
[405880323,1771383043805,-346.36933953,0.0001,2]
[405880324,1771383043815,-151.0,0.0001,2]
[405880325,1771383043824,-151.0,0.0001,2]
[405880326,1771383043834,-151.0,0.0001,2]
[405880327,1771383043843,-151.0,0.0001,2]
[405880328,1771383043852,-151.0,0.0001,2]
[405880329,1771383043862,-151.0,0.0001,2]
[405880330,1771383043871,-152.88486475,0.0001,2]
[405880331,1771383043881,-8700.0,0.0001,3]
[405880332,1771383043890,-151.0,0.0001,2]
[405880333,1771383043899,-151.0,0.0001,2]
[405880334,1771383043909,-151.0,0.0001,2]
[405880335,1771383043918,-151.0,0.0001,2]
[405880336,1771383043927,-151.0,0.0001,2]
[405880337,1771383043936,-151.0,0.0001,2]
[405880338,1771383043946,-151.0,0.0001,2]
[405880339,1771383043955,-151.0,0.0001,2]
[405880341,1771383043965,-151.0,0.0001,2]
[405880342,1771383043974,-151.0,0.0001,2]
[405880343,1771383043984,-151.0,0.0001,2]
[405880344,1771383043993,-151.0,0.0001,2]
[405880345,1771383044002,-151.0,0.0001,2]
[405880346,1771383044012,-151.0,0.0001,2]
[405880347,1771383044021,-151.0,0.0001,2]
[405880348,1771383044031,-151.0,0.0001,2]
[405880349,1771383044040,-151.0,0.0001,2]
[405880350,1771383044050,-151.0,0.0001,2]
[405880351,1771383044059,-151.0,0.0001,2]
[405880352,1771383044071,-151.0,0.0001,2]
[405880353,1771383044082,-1285.91861216,0.0001,2]
[405880354,1771383044092,-1285.91861216,0.0001,2]
[405880355,1771383044101,-725.40463049,0.0001,2]
[405880356,1771383044111,-725.40463049,0.0001,2]
[405880357,1771383044120,-725.40463049,0.0001,2]
[405880358,1771383044130,-337.0,0.0001,2]
[405880359,1771383044139,-337.0,0.0001,2]
[405880360,1771383044148,-338.01523699,0.0001,2]
[405880361,1771383044158,-2669.79534742,0.0001,2]
[405880362,1771383044167,-1000.0,0.00010026,2]
[405880363,1771383044176,-1000.0,0.00010026,2]
[405880364,1771383044186,-228.72360334,0.00010026,2]
[405880365,1771383044195,-1117.04551055,0.00010026,2]
[405880366,1771383044204,-1124.30108599,0.00010026,2]
[405880367,1771383044214,-1000.0,0.00010026,2]
[405880368,1771383044223,-1000.0,0.00010026,2]
[405880369,1771383044232,-1016.25338608,0.00010026,2]
[405880370,1771383044241,-503.32852641,0.00010026,2]
[405880371,1771383044251,-1093.32806004,0.00010026,2]
[405880372,1771383044260,-1000.0,0.00010026,2]
[405880373,1771383044269,-1000.0,0.00010026,2]
[405880374,1771383044278,-1000.0,0.00010026,2]
[405880375,1771383044288,-615.76582304,0.00010026,2]
[405880376,1771383044297,-1000.0,0.00010026,2]
[405880377,1771383044306,-1000.0,0.00010026,2]
[405880378,1771383044315,-1000.0,0.00010026,2]
[405880379,1771383044324,-1000.0,0.00010026,2]
[405880380,1771383044333,-1000.0,0.00010026,2]
[405880381,1771383044342,-1000.0,0.00010026,2]
[405880382,1771383044351,-1072.08999206,0.00010026,2]
[405880383,1771383044360,-1000.0,0.00010026,2]
[405880384,1771383044369,-428.40407963,0.00010026,2]
[405880385,1771383044379,-393.89,0.00010046,2]
[405880386,1771383044388,-378.0,0.00010101,2]
[405880387,1771383044397,-293.0,0.00010126,2]
[405880388,1771383044407,-434.8597435,0.0001014,2]
[405880389,1771383044417,-150.0,0.0001014,2]
[405880390,1771383044426,-1600.0,0.00010176,2]
[405880391,1771383044435,-619.60418708,0.000102,2]
[405880392,1771383044445,-926.43,0.000102,2]
[405880393,1771383044454,-378.0,0.00010266,2]
[405880394,1771383044463,-898.67303292,0.00010292,2]
[405880395,1771383044472,-21159.47305191,0.00010296,2]
[405880396,1771383044482,-926.43,0.00010474,2]
[405880397,1771383044491,-9999.99,0.00010475,2]
[405880398,1771383044500,-1413.37,0.00010475,2]
[405880399,1771383044510,-14388.27,0.00010475,2]
[405880400,1771383044519,-378.0,0.000105,2]
[405880401,1771383044529,-393.89,0.00010502,2]
[405880402,1771383044538,-1071.90032146,0.00010549,3]
[405880403,1771383044547,-245.86778969,0.00010574,2]
[405880404,1771383044558,-1500.0,0.00010574,2]
[405880405,1771383044568,-307.32831336,0.00010574,2]
[405880406,1771383044580,-1500.0,0.00010574,2]
[405880407,1771383044590,-1500.0,0.00010574,2]
[405880408,1771383044601,-1500.0,0.00010574,2]
[405880409,1771383044613,-934.26179398,0.00010574,2]
[405880410,1771383044624,-1500.0,0.00010574,2]
[405880411,1771383044634,-1241.16686594,0.00010574,2]
[405880412,1771383044642,-500.87268816,0.00010574,2]
[405880413,1771383044654,-1500.0,0.00010574,2]
[405880414,1771383044663,-1500.0,0.00010574,2]
[405880415,1771383044672,-1500.0,0.00010574,2]
[405880416,1771383044681,-1500.0,0.00010574,2]
[405880417,1771383044690,-150.0,0.00010594,12]
[405880418,1771383044699,-150.0,0.00010594,12]
[405880419,1771383044708,-206.0,0.00010594,12]
[405880420,1771383044717,-378.0,0.00010598,2]
[405880421,1771383044727,-600.0,0.00010624,2]
[405880422,1771383044740,-269.09940998,0.000107,2]
[405880423,1771383044751,-214307.0,0.000107,2]
[405880424,1771383044761,-926.43,0.00010748,2]
[405880425,1771383044770,-281.63,0.00010748,2]
[405880426,1771383044781,-256.24,0.00010756,2]
[405880427,1771383044792,-1285.91861216,0.00010766,2]
[405880428,1771383044803,-200.0,0.00010814,12]
[405880429,1771383044815,-200.0,0.00010814,12]
[405880430,1771383044825,-200.0,0.00010814,12]
[405880431,1771383044836,-280.0,0.00010814,12]
[405880432,1771383044846,-1027.17831757,0.00010837,2]
[405880433,1771383044856,-11065.1578968,0.00010853,2]
[405880434,1771383044865,-15278.26613988,0.00010859,2]
[405880435,1771383044875,-151.0,0.0001086,2]
[405880436,1771383044885,-209.147911,0.00010863,2]
[405880437,1771383044895,-151.0,0.00010863,2]
[405880438,1771383044905,-151.0,0.00010863,2]
[405880439,1771383044914,-1000.0,0.00010863,2]
[405880440,1771383044924,-1000.0,0.00010863,2]
[405880441,1771383044934,-1000.0,0.00010863,2]
[405880442,1771383044943,-1000.0,0.00010863,2]
[405880443,1771383044954,-1000.0,0.00010863,2]
[405880444,1771383044963,-1000.0,0.00010863,2]
[405880445,1771383044973,-1000.0,0.00010863,2]
[405880446,1771383044983,-1069.086677,0.00010863,2]
[405880447,1771383044993,-1575.248018,0.00010863,2]
[405880448,1771383045003,-1575.248018,0.00010863,2]
[405880449,1771383045012,-1575.248018,0.00010863,2]
[405880450,1771383045021,-1575.248018,0.00010863,2]
[405880451,1771383045031,-346.928153,0.00010863,2]
[405880452,1771383045040,-346.928153,0.00010863,2]
[405880453,1771383045049,-346.928153,0.00010863,2]
[405880454,1771383045059,-151.0,0.00010863,2]
[405880455,1771383045068,-346.928153,0.00010863,2]
[405880456,1771383045078,-414864.6536327,0.00010863,2]
[405880457,1771383045087,-230686.1665363,0.00010863,2]
[405880458,1771383045098,-210626.499881,0.00010863,2]
[405880459,1771383045108,-1000.0,0.00010866,2]
[405880460,1771383045118,-3292.0,0.00010937,2]
[405880461,1771383045127,-736.0,0.00010938,2]
[405880462,1771383045137,-16899.82,0.00010959,2]
[405880463,1771383045146,-393.89,0.00010959,2]
[405880464,1771383045156,-6035.69121348,0.00011,2]
[405880465,1771383045166,-926.43,0.00011022,2]
[405880466,1771383045175,-2669.79534742,0.00011089,2]
[405880467,1771383045185,-151.0,0.00011096,2]
[405880468,1771383045195,-154.12087307,0.00011096,2]
[405880469,1771383045204,-51247.2261605,0.00011099,2]
[405880470,1771383045214,-51247.22616044,0.00011099,2]
[405880471,1771383045223,-51247.22616044,0.00011099,2]
[405880472,1771383045232,-51247.22616044,0.00011099,2]
[405880473,1771383045241,-51247.22616044,0.00011099,2]
[405880474,1771383045250,-51247.22616044,0.00011099,2]
[405880475,1771383045261,-51247.22616044,0.00011099,2]
[405880476,1771383045271,-51247.22616044,0.00011099,2]
[405880477,1771383045280,-51247.22616044,0.00011099,2]
[405880478,1771383045289,-51247.22616044,0.00011099,2]
[405880479,1771383045299,-51828.51623419,0.00011099,2]
[405880480,1771383045308,-51828.51623414,0.00011099,2]
[405880481,1771383045318,-51828.51623414,0.00011099,2]
[405880482,1771383045327,-51828.51623414,0.00011099,2]
[405880483,1771383045336,-51828.51623414,0.00011099,2]
[405880484,1771383045345,-26212.16457725,0.00011099,2]
[405880486,1771383046200,-553.23049242,0.00011099,2]
[405880487,1771383046210,-3950.60752974,0.00011099,2]
[405880506,1771383046522,-2933.58524127,9.424e-05,2]
[405880519,1771383046632,188.0,8.274e-05,30]